Cogmind - Beta 15 @@@ ROGUE MODE // 2025.09.20 @ 12:50:40 Player: Beter Result: Destroyed by YI-UF0 with YI-UF0's Doublenader Performance ------------- Evolutions (0) 0 Regions Visited (2) 400 Robots Destroyed (16) 80 Value Destroyed (282) 282 Prototype IDs (0) 0 Alien Tech Used (0) 0 Bonus (21) 21 TOTAL SCORE: 783 Bonus ------- Follower Combat Kills 21 Cogmind --------- Core Integrity 0/250 Matter 289/300 Energy 125/125 System Corruption 0% Temperature Cool (0) Movement Walking (120) Location -10/Mines Parts ------- > --- POWER (1) -------- Light Ion Engine > --- PROPULSION (2) --- Aluminum Leg Aluminum Leg > --- UTILITY (2) ------ Small Storage Unit Targeting Computer > --- WEAPON (2) ------- Light Assault Rifle > --- INVENTORY (8) ---- Aluminum Leg Aluminum Leg Compact Wheel Compact Wheel Light Assault Rifle Light Assault Rifle Mining Laser Peak State ------------ > --- POWER ------------ Ion Engine > --- PROPULSION ------- Aluminum Leg Aluminum Leg > --- UTILITY ---------- Small Storage Unit Targeting Computer > --- WEAPON ----------- Beam Cannon Light Assault Rifle > --- INVENTORY -------- Ion Engine Aluminum Leg Aluminum Leg Compact Wheel Compact Wheel Light Assault Rifle Light Assault Rifle Mining Laser [Rating: 7] Favorites ----------- Power Ion Engine Engine Ion Engine Propulsion Aluminum Leg Leg Aluminum Leg Utility Small Storage Unit Storage Small Storage Unit Processor Targeting Computer Weapon Light Assault Rifle Energy Gun Medium Laser Energy Cannon Beam Cannon Ballistic Gun Light Assault Rifle Build | -11 -10 -10 ------- Run | Yrd Mat Min Slots Evolved . | . . . Power . | . . . Propulsion . | . . . Utility . | . . . Weapon . | . . . Parts Attached 17 | 6 4 7 Power 4 | 1 1 2 Engine 4 | 1 1 2 Core . | . . . Reactor . | . . . Propulsion 6 | 2 1 3 Treads . | . . . Leg 6 | 2 1 3 Wheel . | . . . Hover . | . . . Flight . | . . . Utility 2 | 1 . 1 Device . | . . . Storage 1 | 1 . . Processor 1 | . . 1 Hackware . | . . . Protection . | . . . Artifact . | . . . Weapon 5 | 2 2 1 Energy Gun 1 | 1 . . Energy Cannon 1 | . 1 . Ballistic Gun 3 | 1 1 1 Ballistic Cannon . | . . . Launcher . | . . . Special Weapon . | . . . Impact Weapon . | . . . Slashing Weapon . | . . . Piercing Weapon . | . . . Special Melee Weapon . | . . . Unidentified Prototypes . | . . . Parts Lost 3 | . . 3 Power 1 | . . 1 Propulsion 1 | . . 1 Utility . | . . . Weapon 1 | . . 1 Highest Loss Streak 3 | . . 3 To Critical Strikes . | . . . Average Backups 6 | 3 6 7 Power . | . . . Propulsion 3 | 3 4 3 Utility . | . . . Weapon 2 | . 1 2 Tool/Special . | . . . Unused Backups 6 | . . 6 Power . | . . . Propulsion 4 | . . 4 Utility . | . . . Weapon 2 | . . 2 Tool/Special . | . . . Average Slot Usage (%) 92 | . 84 95 Engine 13 | . 13 14 Leg 28 | . 28 28 Storage 14 | . 14 14 Processor 7 | . . 9 Energy Gun 1 | . 7 . Energy Cannon 12 | . 6 14 Ballistic Gun 14 | . 14 14 Peak Build Rating 7 | 6 6 7 Average Rating 6 | 4 5 6 On Entrance 4 | . 6 6 Naked Turns . | . . . Heaviest Build 14 | 13 14 14 Greatest Support 20 | 20 20 20 Greatest Overweight (x) 1 | 1 . . Average Overweight (x) . | . . . Largest Inventory Capacity 8 | 8 8 8 Average Capacity 7 | 7 8 8 Most Carried 8 | 6 8 8 Average Carried 6 | 4 6 7 Final Capacity 8 | 8 8 8 Final Carried 8 | 6 8 7 Class Distribution -------------------- 53% | Mutant 46% | Scavenger-Mutant Dominant Class ---------------- Mutant | -10/Materials Scavenger-Mutant | -10/Mines Resources | -11 -10 -10 ----------- Run | Yrd Mat Min Matter Collected 400 | 237 46 117 Remotely . | . . . Salvage Created 354 | . 81 273 Parts 28 | . 7 21 Haulers Intercepted . | . . . Recyclers Shooed 1 | . . 1 Parts Field Recycled . | . . . Retrieved Matter . | . . . Parts Self-Destructed . | . . . Prevented . | . . . Kills | -11 -10 -10 ------- Run | Yrd Mat Min Combat Hostiles Destroyed 16 | . 4 12 Guns 7 | . 2 5 Cannons 9 | . 2 7 Classes Destroyed 2 | . 2 . Swarmer 12 | . 3 9 Grunt 4 | . 1 3 Best Kill Streak 4 | . 4 3 Combat Bots Only 4 | . 4 3 Max Kills in Single Turn 1 | . 1 1 Gunslinging . | . . . Exploded . | . . . Melee . | . . . Uniques/NPCs Destroyed . | . . . Combat | -11 -10 -10 -------- Run | Yrd Mat Min Hostile Shots Fired 96 | . 18 78 Missed 29 | . 6 23 Hits 67 | . 12 55 Projectile 67 | . 12 55 AOE 12 | . . 12 Critical Strikes 2 | . 1 1 Damage Taken 877 | . 103 774 Core 261 | . 26 235 Absorbed by Shields . | . . . Core Remaining (%) 100 | 100 . . Volleys Fired 46 | . 12 34 Largest 2 | . 2 2 Hottest 80 | . 80 80 Shots Fired 92 | . 24 68 Gun 48 | . 14 34 Cannon 44 | . 10 34 Launcher . | . . . Special . | . . . Kinetic 46 | . 12 34 Thermal 46 | . 12 34 Explosive . | . . . Electromagnetic . | . . . Robot Hit Streak 8 | . 6 8 Robot Miss Streak 4 | . 4 4 Penetration Max . | . . . Secondary Targets . | . . . Shots Hit Robots 46 | . 12 34 Core Hits 27 | . 6 21 Critical Kills . | . . . Critical Parts Destroyed . | . . . Critical Strikes . | . . . Melee Attacks . | . . . Impact . | . . . Slashing . | . . . Piercing . | . . . Sneak Attacks . | . . . Combat Hostiles . | . . . Follow-up Attacks . | . . . Damage Inflicted 634 | 9 174 451 Guns 183 | . 51 132 Cannons 440 | . 121 319 Explosions . | . . . Melee . | . . . Ramming 11 | 9 2 . Kinetic 183 | . 51 132 Thermal 440 | . 121 319 Explosive . | . . . Electromagnetic . | . . . Impact . | . . . Slashing . | . . . Piercing . | . . . Highest Corruption . | . . . Average Corruption . | . . . Corruption Purged . | . . . Corruption Blocked . | . . . Overload Shots . | . . . Overflow Damage . | . . . Projectiles . | . . . Explosions . | . . . Melee . | . . . Knockbacks . | . . . Impact . | . . . Kinetic . | . . . Secondary . | . . . Self-Inflicted Damage . | . . . Shots . | . . . Rammed . | . . . Targets Rammed 7 | 5 1 1 Kicked 7 | 5 1 1 Crushed . | . . . Highest Temperature 280 | . 212 280 Average Temperature 98 | . 78 105 Received Heat Transfer 75 | . 12 63 Effects 2 | . . 2 Interference 2 | . . 2 Siege Activations . | . . . Martial Activations . | . . . Shielding Activations . | . . . Robots Disrupted . | . . . Combat Hostiles . | . . . Robots Corrupted . | . . . Combat Hostiles . | . . . Parts Fried . | . . . Impact Corruptions . | . . . Robots Melted . | . . . Combat Hostiles . | . . . Parts Melted 5 | . 1 4 Heat Transferred 925 | . 259 666 Parts Sabotaged . | . . . Parts Stolen . | . . . Parts Stripped . | . . . Power Chain Reactions . | . . . Alert | -11 -10 -10 ------- Run | Yrd Mat Min Maximum Alert Level 1 | . . 1 Low Security (%) 72 | 100 100 60 Level 1 27 | . . 39 Level 2 . | . . . Level 3 . | . . . Level 4 . | . . . Level 5 . | . . . High Security . | . . . Max Security . | . . . Peak Influence 275 | . 80 275 Initial 19 | . . 19 Average 107 | . 26 147 Influence Increases 495 | . 90 405 Destroy 0b10 Robot/C 380 | . 80 300 Destroy Leader 70 | . 10 60 Allied During Kill 15 | . . 15 Lose Combat Pursuer 30 | . . 30 Influence Decreases 304 | . 40 264 Entered New Map 31 | . . 31 Time Decay 243 | . 40 203 Lost Part 30 | . . 30 Squads Dispatched . | . . . Investigation . | . . . Extermination . | . . . Reinforcement . | . . . Assault . | . . . Garrison . | . . . Intercept . | . . . Searches Triggered . | . . . Construction Impeded . | . . . Haulers Reinforced . | . . . Active Scanning Responses . | . . . Cargo Convoy Interrupts . | . . . Stealth | -11 -10 -10 --------- Run | Yrd Mat Min Distress Signals 2 | . 1 1 Communications Jammed . | . . . Distress Signals . | . . . Times Spotted 26 | . 8 18 Peak Tracking Total 5 | . 5 5 Tactical Retreats 2 | . . 2 Traps | -11 -10 -10 ------- Run | Yrd Mat Min Traps Triggered 1 | . 1 . Indirectly . | . . . Trap Hack Attempts . | . . . Triggered . | . . . Disarmed . | . . . Reprogrammed . | . . . Reused . | . . . Traps Extracted . | . . . Installed . | . . . Triggered . | . . . Machines | -11 -10 -10 ---------- Run | Yrd Mat Min Machines Disabled . | . . . Max in Single Turn . | . . . Machines Repaired . | . . . Machines Dismantled . | . . . Machines Sabotaged . | . . . Overloaded Fab Kills . | . . . Hacking | -11 -10 -10 --------- Run | Yrd Mat Min Machines Accessed . | . . . Terminals . | . . . Fabricators . | . . . Repair Stations . | . . . Recycling Units . | . . . Scanalyzers . | . . . Garrison Access . | . . . Total Hacks . | . . . Successful . | . . . Failed . | . . . Catastrophic . | . . . Database Lockouts . | . . . Manual . | . . . Terminals . | . . . Fabricators . | . . . Repair Stations . | . . . Recycling Units . | . . . Scanalyzers . | . . . Garrison Access . | . . . Terminal Hacks . | . . . Fabricator Hacks . | . . . Repair Station Hacks . | . . . Recycling Unit Hacks . | . . . Scanalyzer . | . . . Garrison Access Hacks . | . . . Unauthorized Hacks . | . . . Terminals . | . . . Fabricators . | . . . Repair Stations . | . . . Recycling Units . | . . . Scanalyzers . | . . . Garrison Access . | . . . Data Cores Recovered . | . . . Used . | . . . Hacking Detections . | . . . Full Trace Events . | . . . Feedback Events . | . . . Feedback Blocked . | . . . Robot Schematics Acquired . | . . . Robots Built . | . . . Authchips . | . . . Time . | . . . Total Robot Build Rating . | . . . Part Schematics Acquired . | . . . Parts Built . | . . . Authchips . | . . . Time . | . . . Total Part Build Rating . | . . . Parts Repaired . | . . . Time . | . . . Parts Recycled . | . . . Recycled Matter . | . . . Retrieved Matter . | . . . Retrieved Components . | . . . Parts Scanalyzed . | . . . Part Schematics Acquired . | . . . Parts Damaged . | . . . Bothacking | -11 -10 -10 ------------ Run | Yrd Mat Min Used RIF Installer . | . . . Robots Hacked . | . . . Non-combat . | . . . Combat . | . . . Robot Hacks Applied . | . . . Relay Couplers Released . | . . . Fabnet Peak Effective % . | . . . Robots Rewired . | . . . Allies Hacked . | . . . Hacks Repelled . | . . . Allies | -11 -10 -10 -------- Run | Yrd Mat Min Total Allies 1 | . . 1 Largest Group 1 | . . 1 Highest-Rated Group 31 | . . 31 Highest-Rated Ally 31 | . . 31 Total Orders . | . . . Ally Attacks 11 | . . 11 Total Damage 145 | . . 145 Kills 3 | . . 3 Allies Corrupted . | . . . Allies Melted . | . . . Intel | -11 -10 -10 ------- Run | Yrd Mat Min Active Infowar (turns) . | . . . Robot Analysis Total . | . . . Derelict Logs Recovered 2 | . . 2 Drone Launches . | . . . Drone Recoveries . | . . . Exploration | -11 -10 -10 ------------- Run | Yrd Mat Min Turns Passed 665 | 64 142 459 Spaces Moved 382 | 38 72 272 Core 6 | 6 . . Treads . | . . . Legs 376 | 32 72 272 Wheels . | . . . Hover . | . . . Flight . | . . . Fastest Speed 50 | 50 120 120 Average Speed 119 | 115 120 120 Slowest Speed 120 | 120 120 120 Overloaded Moves . | . . . Propulsion Burnouts . | . . . Robots Hopped . | . . . Potential Cave-ins . | . . . Cave-ins Triggered . | . . . Exploration Rate (%) 25 | 4 22 51 Regions Visited 2 Branch Regions 1 Pre-discovered Areas . | . . . Known Exits Taken . | . . . Unknown Exits Taken 2 | 1 1 . Scrap Searched 3 | . . 3 Spaces Dug . | . . . Terrain Destroyed . | . . . Melee . | . . . Projectile . | . . . AOE . | . . . Terrain Rammed . | . . . Walls Destroyed . | . . . Machines Disabled . | . . . Actions | -11 -10 -10 --------- Run | Yrd Mat Min Total 503 | 54 103 346 Wait 34 | . 12 22 Move 380 | 37 71 272 Hop . | . . . Pick Up 10 | 6 1 3 Fast Attach 9 | 6 2 1 Attach 3 | . 1 2 Detach . | . . . Swap 8 | . 3 5 Drop 6 | . . 6 Fire 46 | . 12 34 Melee . | . . . Ram . | . . . Kick 7 | 5 1 1 Crush . | . . . Escape Stasis . | . . . Rewire . | . . . Trap . | . . . Miscellaneous . | . . . Route ------- -11/Scrapyard -10/Materials -10/Mines History --------- Turn | Location | Event 13 | -11/Scrapyard | Discovered new exit (range 15) 65 | -11/Scrapyard | Entered Materials 191 | -10/Materials | Discovered new exit (range 12) 207 | -10/Materials | Entered Mines 210 | -10/Mines | Received a Mining Laser from a helpful Derelict 312 | -10/Mines | Build established: Mutant 467 | -10/Mines | Learned Materials garrison access intel 566 | -10/Mines | Learned Materials terminal intel 626 | -10/Mines | Core integrity fell below 50% 640 | -10/Mines | Core integrity fell below 20% 666 | -10/Mines | Destroyed by YI-UF0 with YI-UF0's Doublenader Last Messages --------------- 00625_ K-01 Serf collects debris. 00626_ U-05 Engineer lays Concrete. 00627_ The unstable cave ceiling collapses. 00627_ U-05 Engineer builds a Wall. 00627_ Aluminum Leg destroyed. 00627_ K-01 Serf destroyed. 00628_ YI-UF0 mumbles something. 00628_ K-01 Serf collects debris. 00630_ The unstable cave ceiling collapses. 00630_ U-05 Engineer lays Concrete. 00640_ The unstable cave ceiling collapses. 00641_ YI-UF0 mumbles something. 00643_ Ion Engine destroyed. 00649_ K-01 Serf collects debris. 00663_ The unstable cave ceiling collapses. 00664_ YI-UF0 mumbles something. 00664_ Acquired 9 matter. 00664_ Beam Cannon destroyed. 00664_ K-01 Serf collects debris. 00666_ The unstable cave ceiling collapses. Map ----- +----------------------------------------------------+ | ???????????????????## #??????????????????????? | | ???????????????????# #???????????????????????? | | ???????????????????# ######???????????????????? | | ???????????????????# = ######?????###??????? | | ???????????????????## = ###### ##?????? | | ????????????????????####### ### ## #?????? | | ??????????????????????????# ### #?????? | | ?????????????????????????## ## ##????? | | ????????????????????????## #????? | | ????????????????????????# ### #???? | | ???????????????????????# ##?## #???? | | ???????????????????????# ### ##????#######???? | | ???????????????????????# ##?# #???????????????? | | ???????????????????????# #???# #####???????????? | | ??????????????###?????# ????# #???????????? | | ??????????????# ???? ????# #???????????? | | ??????????????# ???? ????# ### #???????????? | | ??????????????# #????# ?????# #?? #???????????? | | ??????????????# #??????#?##### #??? #???????????? | | ??????????????# #????????# #???? ???????????? | | ??????????????# #????????# #####????? ??????????? | | ????????###???# #????????# #?????????? ?????????? | | ???????? #???# #???###??# #??????????? ????????? | | ????????# #???# #??## ### #??????????? ???????? | | ????????# #???# #??# #???????????? #??????? | | ????????# #???# ##?#% @ #????????????????????? | | ????????# #??## #?# #????##??????????????? | | ????##### #### ### # #???? ??????????????? | | ???## * % ###?? #??????????????? | | ???# ==%[ #### #?# #??????????????? | | ??## !%=### ###??## = ### ## #??????????? | | ??# %##?## ##????## %[ #% #??????????? | | ??# !#???####????## r ####???????????? | | ??## ##??????????# ## # #???????????? | | ???## ##????????## # #???????????? | | ????## ##???????# = #???????????? | | ?????## ##????# k * # #???????????? | | ??????# #???# #### g #????????????? | | ??????# #???# #???## ##???????????? | | ??????# #???# ?????## #???????????? | | ??????## ##??# ?????## # ##??????????? | | ???????# ##???# ? ??# # ##?????????? | | ###????# #?????????? ?## # #?????????? | | #????# #????????????# # #?????????? | | # #????# #????????????# ###???????? | | # ###### ##???????????# =% # ######### | | # %%[/| #???????????## ## | | ######### #??????##????#??# = | | ????????# #??????# ???????## ###????? | | ?????#### ###????# ????????## # #?????? | +----------------------------------------------------+ Best States ------------- Heat Dissipation 25 Energy Generation 10 Energy Capacity 250 Matter Stores 300 Matter Capacity 300 Sight Range 16 Terrain Scan Density 10 Evasion (%) 55 Targeting Accuracy 5 Item Schematics ----------------- None Robot Schematics ------------------ None Fabricated ------------ Nothing Repaired ---------- Nothing Alien Tech Used ----------------- None Achievements -------------- None Challenges ------------ None Game ------ Seed ExpertPhasingMinigun Manual? 0 Play Time 00:12:31 Cumulative 13.7 hours Start 2025.09.20 @ 12:41:09 End 2025.09.20 @ 12:50:40 Sessions 1 Manual Loads 0 Difficulty Rogue Special Mode None Game No. 13 Rogue 13 Adventurer 0 Explorer 0 Win Type - Total 0 Types 0/0/0/0/0/0/0/0/0/0 Lore% 7 Gallery% 16 Achievement% 12 Wizard Run 0 Options --------- Layout 1 ASCII 0 Keyboard 1 Movement Numpad Keybinds 0 Fullscreen 1 Font 24/Smallcaps Map View 50x35 Zoom Use 0% Tactical HUD 1 Map Filters NONE Filters NONE Steam 1 RUN: d361e295-ade0-4c70-98db-a48417fb314d